Workbook

Sheet IB RFR
L3: SMSA Inbound Request for Rates
N5: Owner/ Department : IBU - BAH, Sales
A9: Customer Details
A10: New A/c | B10: YES/NO | E10: Existing Account Number | J10: Company Name
A11: Main Contact Name | J11: Company Activity
A12: Position | J12: P.O Box | O12: Website
A13: Email Id | J13: Pin Code | O13: CR.No
A14: Telephone | E14: Fax No | J14: Physical Location
A16: Customer Shipping Profile & Monthly Revenue Forecast
A17: Product / Dest | B17: Zone 1 | D17: Zone 2 | F17: Zone 3 | H17: Zone 4 | J17: Zone 5 | L17: Zone 6 | N17: Zone 7 | P17: Zone 8 | R17: Zone 9 | T17: Zone 10
B18: Vol/Wk | C18: Price | D18: Vol/Wk | E18: Price | F18: Vol/Wk | G18: Price | H18: Vol/Wk | I18: Price | J18: Vol/Wk | K18: Price | L18: Vol/Wk | M18: Price | N18: Vol/Wk | O18: Price | P18: Vol/Wk | Q18: Price | R18: Vol/Wk | S18: Price | T18: Vol/Wk | U18: Price
A19: Intl Docs (SIDX) | B19: 0 | C19: =+B19*B21*B30 -> 0 | D19: 0 | E19: =+D19*D21*D30 -> 0 | F19: 0 | G19: =+F19*F21*F30 -> 0 | H19: 0 | I19: =+H19*H21*H30 -> 0 | J19: 0 | K19: =+J19*J21*J30 -> 0 | L19: 0 | M19: =+L19*L21*L30 -> 0 | N19: 0 | O19: =+N19*N21*N30 -> 0 | P19: 0 | Q19: =+P19*P21*P30 -> 0 | R19: 0 | S19: =+R19*R21*R30 -> 0 | T19: 0 | U19: =+T19*T21*T30 -> 0
A20: Intl Par (SIND) | B20: 0 | C20: =+B20*B22*B35 -> 0 | D20: 0 | E20: =+D20*D22*D35 -> 0 | F20: 0 | G20: =+F20*F22*F35 -> 0 | H20: 0 | I20: =+H20*H22*H35 -> 0 | J20: 0 | K20: =+J20*J22*J35 -> 0 | L20: 0 | M20: =+L20*L22*L35 -> 0 | N20: 0 | O20: =+N20*N22*N35 -> 0 | P20: 0 | Q20: =+P20*P22*P35 -> 0 | R20: 0 | S20: =+R20*R22*R35 -> 0 | T20: 0 | U20: =+T20*T22*T35 -> 0
A21: Avg Wt. (SIDX) | B21: 1 | D21: 1 | F21: 1 | H21: 1 | J21: 1 | L21: 1 | N21: 1 | P21: 1 | R21: 1 | T21: 1
A22: Avg Wt. (SIND) | B22: 1 | D22: 1 | F22: 1 | H22: 1 | J22: 1 | L22: 1 | N22: 1 | P22: 1 | R22: 1 | T22: 1
P23: Totlal Revenue (BHD) | S23: =+(C19+C20+E19+E20+G19+G20+I19+I20+K19+K20+M19+M20+O19+O20+Q19+Q20+S19+S20+U19+U20)*4 -> 0
A24: Requested International Rates
A25: Product/Dest | B25: Zone 1 | C25: % | D25: Zone 2 | E25: % | F25: Zone 3 | G25: % | H25: Zone 4 | I25: % | J25: Zone 5 | K25: % | L25: Zone 6 | M25: % | N25: Zone 7 | O25: % | P25: Zone 8 | Q25: % | R25: Zone 9 | S25: % | T25: Zone 10 | U25: %
B26: =+Tariff!$E$28 -> BHIB/0619/FST | D26: =+Tariff!$E$28 -> BHIB/0619/FST | F26: =+Tariff!$E$28 -> BHIB/0619/FST | H26: =+Tariff!$E$28 -> BHIB/0619/FST | J26: =+Tariff!$E$28 -> BHIB/0619/FST | L26: =+Tariff!$E$28 -> BHIB/0619/FST | N26: =+Tariff!$E$28 -> BHIB/0619/FST | P26: =+Tariff!$E$28 -> BHIB/0619/FST | R26: =+Tariff!$E$28 -> BHIB/0619/FST | T26: =+Tariff!$E$28 -> BHIB/0619/FST
B27: Price | D27: Price | F27: Price | H27: Price | J27: Price | L27: Price | N27: Price | P27: Price | R27: Price | T27: Price
A28: SMSA Intl Doc (SIDX)
A29: 0.5 kg | B29: =+Tariff!E3 -> 11.15 | D29: =+Tariff!F3 -> 11.6 | F29: =+Tariff!G3 -> 13.55 | H29: =+Tariff!H3 -> 14.2 | J29: =+Tariff!I3 -> 15.3 | L29: =+Tariff!J3 -> 15.85 | N29: =+Tariff!K3 -> 16 | P29: =+Tariff!L3 -> 18.7 | R29: =+Tariff!M3 -> 0 | T29: =+Tariff!N3 -> 0
A30: 1.0 kg | B30: =+Tariff!E4 -> 17.85 | D30: =+Tariff!F4 -> 19 | F30: =+Tariff!G4 -> 21.9 | H30: =+Tariff!H4 -> 23.25 | J30: =+Tariff!I4 -> 25.5 | L30: =+Tariff!J4 -> 26.9 | N30: =+Tariff!K4 -> 29.5 | P30: =+Tariff!L4 -> 33.3 | R30: =+Tariff!M4 -> 0 | T30: =+Tariff!N4 -> 0
A31: 1.5 kg | B31: =+Tariff!E5 -> 20.1 | D31: =+Tariff!F5 -> 21.65 | F31: =+Tariff!G5 -> 24.85 | H31: =+Tariff!H5 -> 26.65 | J31: =+Tariff!I5 -> 29.6 | L31: =+Tariff!J5 -> 31.7 | N31: =+Tariff!K5 -> 36.65 | P31: =+Tariff!L5 -> 40.4 | R31: =+Tariff!M5 -> 0 | T31: =+Tariff!N5 -> 0
A32: 2.0 kg | B32: =+Tariff!E6 -> 22.4 | D32: =+Tariff!F6 -> 24.4 | F32: =+Tariff!G6 -> 27.8 | H32: =+Tariff!H6 -> 30 | J32: =+Tariff!I6 -> 33.7 | L32: =+Tariff!J6 -> 36.4 | N32: =+Tariff!K6 -> 43.8 | P32: =+Tariff!L6 -> 47.55 | R32: =+Tariff!M6 -> 0 | T32: =+Tariff!N6 -> 0
A33: SMSA Intl Non Docs (SIND)
A34: 0.5 | B34: =+Tariff!E7 -> 12.45 | D34: =+Tariff!F7 -> 14.2 | F34: =+Tariff!G7 -> 15.45 | H34: =+Tariff!H7 -> 17.45 | J34: =+Tariff!I7 -> 18.6 | L34: =+Tariff!J7 -> 19.05 | N34: =+Tariff!K7 -> 21.1 | P34: =+Tariff!L7 -> 22.5 | R34: =+Tariff!M7 -> 0 | T34: =+Tariff!N7 -> 0
A35: 1.0 kg | B35: =+Tariff!E8 -> 19.2 | D35: =+Tariff!F8 -> 21.65 | F35: =+Tariff!G8 -> 23.9 | H35: =+Tariff!H8 -> 26.65 | J35: =+Tariff!I8 -> 28.95 | L35: =+Tariff!J8 -> 30.3 | N35: =+Tariff!K8 -> 34.85 | P35: =+Tariff!L8 -> 37.3 | R35: =+Tariff!M8 -> 0 | T35: =+Tariff!N8 -> 0
A36: 2.0 kg | B36: =+Tariff!E10 -> 22.8 | D36: =+Tariff!F10 -> 25.25 | F36: =+Tariff!G10 -> 28.45 | H36: =+Tariff!H10 -> 31.15 | J36: =+Tariff!I10 -> 34.85 | L36: =+Tariff!J10 -> 37.55 | N36: =+Tariff!K10 -> 45.55 | P36: =+Tariff!L10 -> 48.95 | R36: =+Tariff!M10 -> 0 | T36: =+Tariff!N10 -> 0
A37: 3.0 kg | B37: =+Tariff!E12 -> 26.4 | D37: =+Tariff!F12 -> 28.85 | F37: =+Tariff!G12 -> 32.95 | H37: =+Tariff!H12 -> 35.65 | J37: =+Tariff!I12 -> 40.8 | L37: =+Tariff!J12 -> 44.85 | N37: =+Tariff!K12 -> 56.3 | P37: =+Tariff!L12 -> 60.5 | R37: =+Tariff!M12 -> 0 | T37: =+Tariff!N12 -> 0
A38: 4.0 kg | B38: =+Tariff!E14 -> 34.25 | D38: =+Tariff!F14 -> 37.1 | F38: =+Tariff!G14 -> 42.75 | H38: =+Tariff!H14 -> 45.85 | J38: =+Tariff!I14 -> 53.3 | L38: =+Tariff!J14 -> 59.55 | N38: =+Tariff!K14 -> 76.5 | P38: =+Tariff!L14 -> 82.4 | R38: =+Tariff!M14 -> 0 | T38: =+Tariff!N14 -> 0
A39: 5.0 kg | B39: =+Tariff!E16 -> 38.4 | D39: =+Tariff!F16 -> 41.2 | F39: =+Tariff!G16 -> 47.9 | H39: =+Tariff!H16 -> 51 | J39: =+Tariff!I16 -> 60.1 | L39: =+Tariff!J16 -> 67.9 | N39: =+Tariff!K16 -> 88.75 | P39: =+Tariff!L16 -> 95.65 | R39: =+Tariff!M16 -> 0 | T39: =+Tariff!N16 -> 0
A40: 6.0 kg | B40: =+Tariff!E18 -> 42 | D40: =+Tariff!F18 -> 45.35 | F40: =+Tariff!G18 -> 53.05 | H40: =+Tariff!H18 -> 56.15 | J40: =+Tariff!I18 -> 66.85 | L40: =+Tariff!J18 -> 75.7 | N40: =+Tariff!K18 -> 100.5 | P40: =+Tariff!L18 -> 107.9 | R40: =+Tariff!M18 -> 0 | T40: =+Tariff!N18 -> 0
A41: 7.0 kg | B41: =+Tariff!E20 -> 45.6 | D41: =+Tariff!F20 -> 49.45 | F41: =+Tariff!G20 -> 58.2 | H41: =+Tariff!H20 -> 61.3 | J41: =+Tariff!I20 -> 73.6 | L41: =+Tariff!J20 -> 83.5 | N41: =+Tariff!K20 -> 112.2 | P41: =+Tariff!L20 -> 120.15 | R41: =+Tariff!M20 -> 0 | T41: =+Tariff!N20 -> 0
A42: 8.0 kg | B42: =+Tariff!E22 -> 49.2 | D42: =+Tariff!F22 -> 53.6 | F42: =+Tariff!G22 -> 63.35 | H42: =+Tariff!H22 -> 66.45 | J42: =+Tariff!I22 -> 80.35 | L42: =+Tariff!J22 -> 91.3 | N42: =+Tariff!K22 -> 123.95 | P42: =+Tariff!L22 -> 132.35 | R42: =+Tariff!M22 -> 0 | T42: =+Tariff!N22 -> 0
A43: 9.0 kg | B43: =+Tariff!E24 -> 52.8 | D43: =+Tariff!F24 -> 57.7 | F43: =+Tariff!G24 -> 68.5 | H43: =+Tariff!H24 -> 71.6 | J43: =+Tariff!I24 -> 87.1 | L43: =+Tariff!J24 -> 99.1 | N43: =+Tariff!K24 -> 135.7 | P43: =+Tariff!L24 -> 144.6 | R43: =+Tariff!M24 -> 0 | T43: =+Tariff!N24 -> 0
A44: 10.0 kg | B44: =+Tariff!E26 -> 56.4 | D44: =+Tariff!F26 -> 61.8 | F44: =+Tariff!G26 -> 73.65 | H44: =+Tariff!H26 -> 76.75 | J44: =+Tariff!I26 -> 93.9 | L44: =+Tariff!J26 -> 106.9 | N44: =+Tariff!K26 -> 147.4 | P44: =+Tariff!L26 -> 156.85 | R44: =+Tariff!M26 -> 0 | T44: =+Tariff!N26 -> 0
A45: Each Add'l 0.5 Kg | B45: =+Tariff!E27 -> 1.8 | D45: =+Tariff!F27 -> 2.05 | F45: =+Tariff!G27 -> 2.55 | H45: =+Tariff!H27 -> 2.55 | J45: =+Tariff!I27 -> 3.4 | L45: =+Tariff!J27 -> 3.9 | N45: =+Tariff!K27 -> 5.85 | P45: =+Tariff!L27 -> 6.1 | R45: =+Tariff!M27 -> 0 | T45: =+Tariff!N27 -> 0
A46: Remarks/ Additional Information
A53: Requested By
A54: Sales Person | I54: Date | N54: Signature
A56: Approvals
A57: Sales Manager | C57: Mohamed Diaa Eldien | G57: Date | L57: Signature
A58: Finance Manager | C58: Sunil D'souza | G58: Date | L58: Signature
A59: CGM, BAH | C59: Shaji George | G59: Date | L59: Signature
A60: Commercial Manager | C60: Shibu George | G60: Date | L60: Signature
A61: Director, IBU | C61: Mohannad M.S. Khayyat | G61: Date | L61: Signature
A62: Sales Coordinator:

Sheet Tariff
D1: TRANSFER RATES TO MAIN SHEET | O1: CASH RATES | Z1: TELESALES TARIFF - 30% | AK1: FIELD SALES TARIFF - 50% | AV1: SALES MANAGER TARIFF - 70% | BG1: GENERAL MANAGER TARIFF - 80% | BR1: CUSTOMIZED TARIFF | CC1: PERSONALIZED TARIFF %
E2: Z1 | F2: Z2 | G2: Z3 | H2: Z4 | I2: Z5 | J2: Z6 | K2: Z7 | L2: Z8 | M2: Z9 | N2: Z10 | P2: Z1 | Q2: Z2 | R2: Z3 | S2: Z4 | T2: Z5 | U2: Z6 | V2: Z7 | W2: Z8 | X2: Z9 | Y2: Z10 | AA2: Z1 | AB2: Z2 | AC2: Z3 | AD2: Z4 | AE2: Z5 | AF2: Z6 | AG2: Z7 | AH2: Z8 | AI2: Z9 | AJ2: Z10 | AL2: Z1 | AM2: Z2 | AN2: Z3 | AO2: Z4 | AP2: Z5 | AQ2: Z6 | AR2: Z7 | AS2: Z8 | AT2: Z9 | AU2: Z10 | AW2: Z1 | AX2: Z2 | AY2: Z3 | AZ2: Z4 | BA2: Z5 | BB2: Z6 | BC2: Z7 | BD2: Z8 | BE2: Z9 | BF2: Z10 | BH2: Z1 | BI2: Z2 | BJ2: Z3 | BK2: Z4 | BL2: Z5 | BM2: Z6 | BN2: Z7 | BO2: Z8 | BP2: Z9 | BQ2: Z10 | BS2: Z1 | BT2: Z2 | BU2: Z3 | BV2: Z4 | BW2: Z5 | BX2: Z6 | BY2: Z7 | BZ2: Z8 | CA2: Z9 | CB2: Z10 | CD2: Z1 | CE2: Z2 | CF2: Z3 | CG2: Z4 | CH2: Z5 | CI2: Z6 | CJ2: Z7 | CK2: Z8 | CL2: Z9 | CM2: Z10
D3: 0.5 | E3: =+E32 -> 11.15 | F3: =+F32 -> 11.6 | G3: 13.55 | H3: 14.2 | I3: 15.3 | J3: 15.85 | K3: 16 | L3: 18.7 | M3: 0 | N3: 0 | O3: 0.5 | P3: 22.3 | Q3: 23.2 | R3: 27.1 | S3: 28.4 | T3: 30.6 | U3: 31.7 | V3: 32 | W3: 37.4 | X3: 0 | Y3: 0 | Z3: 0.5 | AA3: 15.61 | AB3: 16.24 | AC3: 18.97 | AD3: 19.88 | AE3: 21.42 | AF3: 22.19 | AG3: 22.4 | AH3: 26.18 | AI3: 0 | AJ3: 0 | AK3: 0.5 | AL3: 11.15 | AM3: 11.6 | AN3: 13.55 | AO3: 14.2 | AP3: 15.3 | AQ3: 15.85 | AR3: 16 | AS3: 18.7 | AT3: 0 | AU3: 0 | AV3: 0.5 | AW3: 6.69 | AX3: 6.96 | AY3: 8.13 | AZ3: 8.52 | BA3: 9.18 | BB3: 9.51 | BC3: 9.6 | BD3: 11.22 | BE3: 0 | BF3: 0 | BG3: 0.5 | BH3: 4.46 | BI3: 4.64 | BJ3: 5.42 | BK3: 5.68 | BL3: 6.12 | BM3: 6.34 | BN3: 6.4 | BO3: 7.48 | BP3: 0 | BQ3: 0 | BR3: 0.5 | BS3: =P3-(P3*CD3) -> 22.3 | BT3: =Q3-(Q3*CE3) -> 23.2 | BU3: 27.1 | BV3: 28.4 | BW3: 30.6 | BX3: 31.7 | BY3: 32 | BZ3: 37.4 | CA3: 0 | CB3: 0 | CC3: 0.5 | CD3: 0 | CE3: 0 | CF3: 0 | CG3: 0 | CH3: 0 | CI3: 0 | CJ3: 0 | CK3: 0 | CL3: 0 | CM3: 0
D4: 1 | E4: =+E33 -> 17.85 | F4: 19 | G4: 21.9 | H4: 23.25 | I4: 25.5 | J4: 26.9 | K4: 29.5 | L4: 33.3 | M4: 0 | N4: 0 | O4: 1 | P4: 35.7 | Q4: 38 | R4: 43.8 | S4: 46.5 | T4: 51 | U4: 53.8 | V4: 59 | W4: 66.6 | X4: 0 | Y4: 0 | Z4: 1 | AA4: 24.99 | AB4: 26.6 | AC4: 30.66 | AD4: 32.55 | AE4: 35.7 | AF4: 37.66 | AG4: 41.3 | AH4: 46.62 | AI4: 0 | AJ4: 0 | AK4: 1 | AL4: 17.85 | AM4: 19 | AN4: 21.9 | AO4: 23.25 | AP4: 25.5 | AQ4: 26.9 | AR4: 29.5 | AS4: 33.3 | AT4: 0 | AU4: 0 | AV4: 1 | AW4: 10.71 | AX4: 11.4 | AY4: 13.14 | AZ4: 13.95 | BA4: 15.3 | BB4: 16.14 | BC4: 17.7 | BD4: 19.98 | BE4: 0 | BF4: 0 | BG4: 1 | BH4: 7.14 | BI4: 7.6 | BJ4: 8.76 | BK4: 9.3 | BL4: 10.2 | BM4: 10.76 | BN4: 11.8 | BO4: 13.32 | BP4: 0 | BQ4: 0 | BR4: 1 | BS4: =P4-(P4*CD4) -> 35.7 | BT4: 38 | BU4: 43.8 | BV4: 46.5 | BW4: 51 | BX4: 53.8 | BY4: 59 | BZ4: 66.6 | CA4: 0 | CB4: 0 | CC4: 1 | CD4: 0 | CE4: 0 | CF4: 0 | CG4: 0 | CH4: 0 | CI4: 0 | CJ4: 0 | CK4: 0 | CL4: 0 | CM4: 0
D5: 1.5 | E5: =+E34 -> 20.1 | F5: 21.65 | G5: 24.85 | H5: 26.65 | I5: 29.6 | J5: 31.7 | K5: 36.65 | L5: 40.4 | M5: 0 | N5: 0 | O5: 1.5 | P5: 40.2 | Q5: 43.3 | R5: 49.7 | S5: 53.3 | T5: 59.2 | U5: 63.4 | V5: 73.3 | W5: 80.8 | X5: 0 | Y5: 0 | Z5: 1.5 | AA5: 28.14 | AB5: 30.31 | AC5: 34.79 | AD5: 37.31 | AE5: 41.44 | AF5: 44.38 | AG5: 51.31 | AH5: 56.56 | AI5: 0 | AJ5: 0 | AK5: 1.5 | AL5: 20.1 | AM5: 21.65 | AN5: 24.85 | AO5: 26.65 | AP5: 29.6 | AQ5: 31.7 | AR5: 36.65 | AS5: 40.4 | AT5: 0 | AU5: 0 | AV5: 1.5 | AW5: 12.06 | AX5: 12.99 | AY5: 14.91 | AZ5: 15.99 | BA5: 17.76 | BB5: 19.02 | BC5: 21.99 | BD5: 24.24 | BE5: 0 | BF5: 0 | BG5: 1.5 | BH5: 8.04 | BI5: 8.66 | BJ5: 9.94 | BK5: 10.66 | BL5: 11.84 | BM5: 12.68 | BN5: 14.66 | BO5: 16.16 | BP5: 0 | BQ5: 0 | BR5: 1.5 | BS5: 40.2 | BT5: 43.3 | BU5: 49.7 | BV5: 53.3 | BW5: 59.2 | BX5: 63.4 | BY5: 73.3 | BZ5: 80.8 | CA5: 0 | CB5: 0 | CC5: 1.5 | CD5: 0 | CE5: 0 | CF5: 0 | CG5: 0 | CH5: 0 | CI5: 0 | CJ5: 0 | CK5: 0 | CL5: 0 | CM5: 0
D6: 2 | E6: =+E35 -> 22.4 | F6: 24.4 | G6: 27.8 | H6: 30 | I6: 33.7 | J6: 36.4 | K6: 43.8 | L6: 47.55 | M6: 0 | N6: 0 | O6: 2 | P6: 44.8 | Q6: 48.8 | R6: 55.6 | S6: 60 | T6: 67.4 | U6: 72.8 | V6: 87.6 | W6: 95.1 | X6: 0 | Y6: 0 | Z6: 2 | AA6: 31.36 | AB6: 34.16 | AC6: 38.92 | AD6: 42 | AE6: 47.18 | AF6: 50.96 | AG6: 61.32 | AH6: 66.57 | AI6: 0 | AJ6: 0 | AK6: 2 | AL6: 22.4 | AM6: 24.4 | AN6: 27.8 | AO6: 30 | AP6: 33.7 | AQ6: 36.4 | AR6: 43.8 | AS6: 47.55 | AT6: 0 | AU6: 0 | AV6: 2 | AW6: 13.44 | AX6: 14.64 | AY6: 16.68 | AZ6: 18 | BA6: 20.22 | BB6: 21.84 | BC6: 26.28 | BD6: 28.53 | BE6: 0 | BF6: 0 | BG6: 2 | BH6: 8.96 | BI6: 9.76 | BJ6: 11.12 | BK6: 12 | BL6: 13.48 | BM6: 14.56 | BN6: 17.52 | BO6: 19.02 | BP6: 0 | BQ6: 0 | BR6: 2 | BS6: 44.8 | BT6: 48.8 | BU6: 55.6 | BV6: 60 | BW6: 67.4 | BX6: 72.8 | BY6: 87.6 | BZ6: 95.1 | CA6: 0 | CB6: 0 | CC6: 2 | CD6: 0 | CE6: 0 | CF6: 0 | CG6: 0 | CH6: 0 | CI6: 0 | CJ6: 0 | CK6: 0 | CL6: 0 | CM6: 0
D7: 0.5 | E7: =+E36 -> 12.45 | F7: 14.2 | G7: 15.45 | H7: 17.45 | I7: 18.6 | J7: 19.05 | K7: 21.1 | L7: 22.5 | M7: 0 | N7: 0 | O7: 0.5 | P7: 24.9 | Q7: 28.4 | R7: 30.9 | S7: 34.9 | T7: 37.2 | U7: 38.1 | V7: 42.2 | W7: 45 | X7: 0 | Y7: 0 | Z7: 0.5 | AA7: 17.43 | AB7: 19.88 | AC7: 21.63 | AD7: 24.43 | AE7: 26.04 | AF7: 26.67 | AG7: 29.54 | AH7: 31.5 | AI7: 0 | AJ7: 0 | AK7: 0.5 | AL7: 12.45 | AM7: 14.2 | AN7: 15.45 | AO7: 17.45 | AP7: 18.6 | AQ7: 19.05 | AR7: 21.1 | AS7: 22.5 | AT7: 0 | AU7: 0 | AV7: 0.5 | AW7: 7.47 | AX7: 8.52 | AY7: 9.27 | AZ7: 10.47 | BA7: 11.16 | BB7: 11.43 | BC7: 12.66 | BD7: 13.5 | BE7: 0 | BF7: 0 | BG7: 0.5 | BH7: 4.98 | BI7: 5.68 | BJ7: 6.18 | BK7: 6.98 | BL7: 7.44 | BM7: 7.62 | BN7: 8.44 | BO7: 9 | BP7: 0 | BQ7: 0 | BR7: 0.5 | BS7: 24.9 | BT7: 28.4 | BU7: 30.9 | BV7: 34.9 | BW7: 37.2 | BX7: 38.1 | BY7: 42.2 | BZ7: 45 | CA7: 0 | CB7: 0 | CC7: 0.5 | CD7: 0 | CE7: 0 | CF7: 0 | CG7: 0 | CH7: 0 | CI7: 0 | CJ7: 0 | CK7: 0 | CL7: 0 | CM7: 0
D8: 1 | E8: =+E37 -> 19.2 | F8: 21.65 | G8: 23.9 | H8: 26.65 | I8: 28.95 | J8: 30.3 | K8: 34.85 | L8: 37.3 | M8: 0 | N8: 0 | O8: 1 | P8: 38.4 | Q8: 43.3 | R8: 47.8 | S8: 53.3 | T8: 57.9 | U8: 60.6 | V8: 69.7 | W8: 74.6 | X8: 0 | Y8: 0 | Z8: 1 | AA8: 26.88 | AB8: 30.31 | AC8: 33.46 | AD8: 37.31 | AE8: 40.53 | AF8: 42.42 | AG8: 48.79 | AH8: 52.22 | AI8: 0 | AJ8: 0 | AK8: 1 | AL8: 19.2 | AM8: 21.65 | AN8: 23.9 | AO8: 26.65 | AP8: 28.95 | AQ8: 30.3 | AR8: 34.85 | AS8: 37.3 | AT8: 0 | AU8: 0 | AV8: 1 | AW8: 11.52 | AX8: 12.99 | AY8: 14.34 | AZ8: 15.99 | BA8: 17.37 | BB8: 18.18 | BC8: 20.91 | BD8: 22.38 | BE8: 0 | BF8: 0 | BG8: 1 | BH8: 7.68 | BI8: 8.66 | BJ8: 9.56 | BK8: 10.66 | BL8: 11.58 | BM8: 12.12 | BN8: 13.94 | BO8: 14.92 | BP8: 0 | BQ8: 0 | BR8: 1 | BS8: 38.4 | BT8: 43.3 | BU8: 47.8 | BV8: 53.3 | BW8: 57.9 | BX8: 60.6 | BY8: 69.7 | BZ8: 74.6 | CA8: 0 | CB8: 0 | CC8: 1 | CD8: 0 | CE8: 0 | CF8: 0 | CG8: 0 | CH8: 0 | CI8: 0 | CJ8: 0 | CK8: 0 | CL8: 0 | CM8: 0
D9: 1.5 | E9: =+E38 -> 21 | F9: 23.45 | G9: 26.2 | H9: 28.85 | I9: 31.9 | J9: 33.95 | K9: 40.2 | L9: 43.1 | M9: 0 | N9: 0 | O9: 1.5 | P9: 42 | Q9: 46.9 | R9: 52.4 | S9: 57.7 | T9: 63.8 | U9: 67.9 | V9: 80.4 | W9: 86.2 | X9: 0 | Y9: 0 | Z9: 1.5 | AA9: 29.4 | AB9: 32.83 | AC9: 36.68 | AD9: 40.39 | AE9: 44.66 | AF9: 47.53 | AG9: 56.28 | AH9: 60.34 | AI9: 0 | AJ9: 0 | AK9: 1.5 | AL9: 21 | AM9: 23.45 | AN9: 26.2 | AO9: 28.85 | AP9: 31.9 | AQ9: 33.95 | AR9: 40.2 | AS9: 43.1 | AT9: 0 | AU9: 0 | AV9: 1.5 | AW9: 12.6 | AX9: 14.07 | AY9: 15.72 | AZ9: 17.31 | BA9: 19.14 | BB9: 20.37 | BC9: 24.12 | BD9: 25.86 | BE9: 0 | BF9: 0 | BG9: 1.5 | BH9: 8.4 | BI9: 9.38 | BJ9: 10.48 | BK9: 11.54 | BL9: 12.76 | BM9: 13.58 | BN9: 16.08 | BO9: 17.24 | BP9: 0 | BQ9: 0 | BR9: 1.5 | BS9: 42 | BT9: 46.9 | BU9: 52.4 | BV9: 57.7 | BW9: 63.8 | BX9: 67.9 | BY9: 80.4 | BZ9: 86.2 | CA9: 0 | CB9: 0 | CC9: 1.5 | CD9: 0 | CE9: 0 | CF9: 0 | CG9: 0 | CH9: 0 | CI9: 0 | CJ9: 0 | CK9: 0 | CL9: 0 | CM9: 0
D10: 2 | E10: =+E39 -> 22.8 | F10: 25.25 | G10: 28.45 | H10: 31.15 | I10: 34.85 | J10: 37.55 | K10: 45.55 | L10: 48.95 | M10: 0 | N10: 0 | O10: 2 | P10: 45.6 | Q10: 50.5 | R10: 56.9 | S10: 62.3 | T10: 69.7 | U10: 75.1 | V10: 91.1 | W10: 97.9 | X10: 0 | Y10: 0 | Z10: 2 | AA10: 31.92 | AB10: 35.35 | AC10: 39.83 | AD10: 43.61 | AE10: 48.79 | AF10: 52.57 | AG10: 63.77 | AH10: 68.53 | AI10: 0 | AJ10: 0 | AK10: 2 | AL10: 22.8 | AM10: 25.25 | AN10: 28.45 | AO10: 31.15 | AP10: 34.85 | AQ10: 37.55 | AR10: 45.55 | AS10: 48.95 | AT10: 0 | AU10: 0 | AV10: 2 | AW10: 13.68 | AX10: 15.15 | AY10: 17.07 | AZ10: 18.69 | BA10: 20.91 | BB10: 22.53 | BC10: 27.33 | BD10: 29.37 | BE10: 0 | BF10: 0 | BG10: 2 | BH10: 9.12 | BI10: 10.1 | BJ10: 11.38 | BK10: 12.46 | BL10: 13.94 | BM10: 15.02 | BN10: 18.22 | BO10: 19.58 | BP10: 0 | BQ10: 0 | BR10: 2 | BS10: 45.6 | BT10: 50.5 | BU10: 56.9 | BV10: 62.3 | BW10: 69.7 | BX10: 75.1 | BY10: 91.1 | BZ10: 97.9 | CA10: 0 | CB10: 0 | CC10: 2 | CD10: 0 | CE10: 0 | CF10: 0 | CG10: 0 | CH10: 0 | CI10: 0 | CJ10: 0 | CK10: 0 | CL10: 0 | CM10: 0
D11: 2.5 | E11: =+E40 -> 24.6 | F11: 27.05 | G11: 30.65 | H11: 33.4 | I11: 37.85 | J11: 41.2 | K11: 50.9 | L11: 54.7 | M11: 0 | N11: 0 | O11: 2.5 | P11: 49.2 | Q11: 54.1 | R11: 61.3 | S11: 66.8 | T11: 75.7 | U11: 82.4 | V11: 101.8 | W11: 109.4 | X11: 0 | Y11: 0 | Z11: 2.5 | AA11: 34.44 | AB11: 37.87 | AC11: 42.91 | AD11: 46.76 | AE11: 52.99 | AF11: 57.68 | AG11: 71.26 | AH11: 76.58 | AI11: 0 | AJ11: 0 | AK11: 2.5 | AL11: 24.6 | AM11: 27.05 | AN11: 30.65 | AO11: 33.4 | AP11: 37.85 | AQ11: 41.2 | AR11: 50.9 | AS11: 54.7 | AT11: 0 | AU11: 0 | AV11: 2.5 | AW11: 14.76 | AX11: 16.23 | AY11: 18.39 | AZ11: 20.04 | BA11: 22.71 | BB11: 24.72 | BC11: 30.54 | BD11: 32.82 | BE11: 0 | BF11: 0 | BG11: 2.5 | BH11: 9.84 | BI11: 10.82 | BJ11: 12.26 | BK11: 13.36 | BL11: 15.14 | BM11: 16.48 | BN11: 20.36 | BO11: 21.88 | BP11: 0 | BQ11: 0 | BR11: 2.5 | BS11: 49.2 | BT11: 54.1 | BU11: 61.3 | BV11: 66.8 | BW11: 75.7 | BX11: 82.4 | BY11: 101.8 | BZ11: 109.4 | CA11: 0 | CB11: 0 | CC11: 2.5 | CD11: 0 | CE11: 0 | CF11: 0 | CG11: 0 | CH11: 0 | CI11: 0 | CJ11: 0 | CK11: 0 | CL11: 0 | CM11: 0
D12: 3 | E12: =+E41 -> 26.4 | F12: 28.85 | G12: 32.95 | H12: 35.65 | I12: 40.8 | J12: 44.85 | K12: 56.3 | L12: 60.5 | M12: 0 | N12: 0 | O12: 3 | P12: 52.8 | Q12: 57.7 | R12: 65.9 | S12: 71.3 | T12: 81.6 | U12: 89.7 | V12: 112.6 | W12: 121 | X12: 0 | Y12: 0 | Z12: 3 | AA12: 36.96 | AB12: 40.39 | AC12: 46.13 | AD12: 49.91 | AE12: 57.12 | AF12: 62.79 | AG12: 78.82 | AH12: 84.7 | AI12: 0 | AJ12: 0 | AK12: 3 | AL12: 26.4 | AM12: 28.85 | AN12: 32.95 | AO12: 35.65 | AP12: 40.8 | AQ12: 44.85 | AR12: 56.3 | AS12: 60.5 | AT12: 0 | AU12: 0 | AV12: 3 | AW12: 15.84 | AX12: 17.31 | AY12: 19.77 | AZ12: 21.39 | BA12: 24.48 | BB12: 26.91 | BC12: 33.78 | BD12: 36.3 | BE12: 0 | BF12: 0 | BG12: 3 | BH12: 10.56 | BI12: 11.54 | BJ12: 13.18 | BK12: 14.26 | BL12: 16.32 | BM12: 17.94 | BN12: 22.52 | BO12: 24.2 | BP12: 0 | BQ12: 0 | BR12: 3 | BS12: 52.8 | BT12: 57.7 | BU12: 65.9 | BV12: 71.3 | BW12: 81.6 | BX12: 89.7 | BY12: 112.6 | BZ12: 121 | CA12: 0 | CB12: 0 | CC12: 3 | CD12: 0 | CE12: 0 | CF12: 0 | CG12: 0 | CH12: 0 | CI12: 0 | CJ12: 0 | CK12: 0 | CL12: 0 | CM12: 0
D13: 3.5 | E13: =+E42 -> 32.2 | F13: 35.05 | G13: 40.2 | H13: 43.3 | I13: 49.95 | J13: 55.4 | K13: 70.4 | L13: 75.75 | M13: 0 | N13: 0 | O13: 3.5 | P13: 64.4 | Q13: 70.1 | R13: 80.4 | S13: 86.6 | T13: 99.9 | U13: 110.8 | V13: 140.8 | W13: 151.5 | X13: 0 | Y13: 0 | Z13: 3.5 | AA13: 45.08 | AB13: 49.07 | AC13: 56.28 | AD13: 60.62 | AE13: 69.93 | AF13: 77.56 | AG13: 98.56 | AH13: 106.05 | AI13: 0 | AJ13: 0 | AK13: 3.5 | AL13: 32.2 | AM13: 35.05 | AN13: 40.2 | AO13: 43.3 | AP13: 49.95 | AQ13: 55.4 | AR13: 70.4 | AS13: 75.75 | AT13: 0 | AU13: 0 | AV13: 3.5 | AW13: 19.32 | AX13: 21.03 | AY13: 24.12 | AZ13: 25.98 | BA13: 29.97 | BB13: 33.24 | BC13: 42.24 | BD13: 45.45 | BE13: 0 | BF13: 0 | BG13: 3.5 | BH13: 12.88 | BI13: 14.02 | BJ13: 16.08 | BK13: 17.32 | BL13: 19.98 | BM13: 22.16 | BN13: 28.16 | BO13: 30.3 | BP13: 0 | BQ13: 0 | BR13: 3.5 | BS13: 64.4 | BT13: 70.1 | BU13: 80.4 | BV13: 86.6 | BW13: 99.9 | BX13: 110.8 | BY13: 140.8 | BZ13: 151.5 | CA13: 0 | CB13: 0 | CC13: 3.5 | CD13: 0 | CE13: 0 | CF13: 0 | CG13: 0 | CH13: 0 | CI13: 0 | CJ13: 0 | CK13: 0 | CL13: 0 | CM13: 0
D14: 4 | E14: =+E43 -> 34.25 | F14: 37.1 | G14: 42.75 | H14: 45.85 | I14: 53.3 | J14: 59.55 | K14: 76.5 | L14: 82.4 | M14: 0 | N14: 0 | O14: 4 | P14: 68.5 | Q14: 74.2 | R14: 85.5 | S14: 91.7 | T14: 106.6 | U14: 119.1 | V14: 153 | W14: 164.8 | X14: 0 | Y14: 0 | Z14: 4 | AA14: 47.95 | AB14: 51.94 | AC14: 59.85 | AD14: 64.19 | AE14: 74.62 | AF14: 83.37 | AG14: 107.1 | AH14: 115.36 | AI14: 0 | AJ14: 0 | AK14: 4 | AL14: 34.25 | AM14: 37.1 | AN14: 42.75 | AO14: 45.85 | AP14: 53.3 | AQ14: 59.55 | AR14: 76.5 | AS14: 82.4 | AT14: 0 | AU14: 0 | AV14: 4 | AW14: 20.55 | AX14: 22.26 | AY14: 25.65 | AZ14: 27.51 | BA14: 31.98 | BB14: 35.73 | BC14: 45.9 | BD14: 49.44 | BE14: 0 | BF14: 0 | BG14: 4 | BH14: 13.7 | BI14: 14.84 | BJ14: 17.1 | BK14: 18.34 | BL14: 21.32 | BM14: 23.82 | BN14: 30.6 | BO14: 32.96 | BP14: 0 | BQ14: 0 | BR14: 4 | BS14: 68.5 | BT14: 74.2 | BU14: 85.5 | BV14: 91.7 | BW14: 106.6 | BX14: 119.1 | BY14: 153 | BZ14: 164.8 | CA14: 0 | CB14: 0 | CC14: 4 | CD14: 0 | CE14: 0 | CF14: 0 | CG14: 0 | CH14: 0 | CI14: 0 | CJ14: 0 | CK14: 0 | CL14: 0 | CM14: 0
D15: 4.5 | E15: =+E44 -> 36.35 | F15: 39.15 | G15: 45.35 | H15: 48.45 | I15: 56.7 | J15: 63.7 | K15: 82.65 | L15: 89 | M15: 0 | N15: 0 | O15: 4.5 | P15: 72.7 | Q15: 78.3 | R15: 90.7 | S15: 96.9 | T15: 113.4 | U15: 127.4 | V15: 165.3 | W15: 178 | X15: 0 | Y15: 0 | Z15: 4.5 | AA15: 50.89 | AB15: 54.81 | AC15: 63.49 | AD15: 67.83 | AE15: 79.38 | AF15: 89.18 | AG15: 115.71 | AH15: 124.6 | AI15: 0 | AJ15: 0 | AK15: 4.5 | AL15: 36.35 | AM15: 39.15 | AN15: 45.35 | AO15: 48.45 | AP15: 56.7 | AQ15: 63.7 | AR15: 82.65 | AS15: 89 | AT15: 0 | AU15: 0 | AV15: 4.5 | AW15: 21.81 | AX15: 23.49 | AY15: 27.21 | AZ15: 29.07 | BA15: 34.02 | BB15: 38.22 | BC15: 49.59 | BD15: 53.4 | BE15: 0 | BF15: 0 | BG15: 4.5 | BH15: 14.54 | BI15: 15.66 | BJ15: 18.14 | BK15: 19.38 | BL15: 22.68 | BM15: 25.48 | BN15: 33.06 | BO15: 35.6 | BP15: 0 | BQ15: 0 | BR15: 4.5 | BS15: 72.7 | BT15: 78.3 | BU15: 90.7 | BV15: 96.9 | BW15: 113.4 | BX15: 127.4 | BY15: 165.3 | BZ15: 178 | CA15: 0 | CB15: 0 | CC15: 4.5 | CD15: 0 | CE15: 0 | CF15: 0 | CG15: 0 | CH15: 0 | CI15: 0 | CJ15: 0 | CK15: 0 | CL15: 0 | CM15: 0
D16: 5 | E16: =+E45 -> 38.4 | F16: 41.2 | G16: 47.9 | H16: 51 | I16: 60.1 | J16: 67.9 | K16: 88.75 | L16: 95.65 | M16: 0 | N16: 0 | O16: 5 | P16: 76.8 | Q16: 82.4 | R16: 95.8 | S16: 102 | T16: 120.2 | U16: 135.8 | V16: 177.5 | W16: 191.3 | X16: 0 | Y16: 0 | Z16: 5 | AA16: 53.76 | AB16: 57.68 | AC16: 67.06 | AD16: 71.4 | AE16: 84.14 | AF16: 95.06 | AG16: 124.25 | AH16: 133.91 | AI16: 0 | AJ16: 0 | AK16: 5 | AL16: 38.4 | AM16: 41.2 | AN16: 47.9 | AO16: 51 | AP16: 60.1 | AQ16: 67.9 | AR16: 88.75 | AS16: 95.65 | AT16: 0 | AU16: 0 | AV16: 5 | AW16: 23.04 | AX16: 24.72 | AY16: 28.74 | AZ16: 30.6 | BA16: 36.06 | BB16: 40.74 | BC16: 53.25 | BD16: 57.39 | BE16: 0 | BF16: 0 | BG16: 5 | BH16: 15.36 | BI16: 16.48 | BJ16: 19.16 | BK16: 20.4 | BL16: 24.04 | BM16: 27.16 | BN16: 35.5 | BO16: 38.26 | BP16: 0 | BQ16: 0 | BR16: 5 | BS16: 76.8 | BT16: 82.4 | BU16: 95.8 | BV16: 102 | BW16: 120.2 | BX16: 135.8 | BY16: 177.5 | BZ16: 191.3 | CA16: 0 | CB16: 0 | CC16: 5 | CD16: 0 | CE16: 0 | CF16: 0 | CG16: 0 | CH16: 0 | CI16: 0 | CJ16: 0 | CK16: 0 | CL16: 0 | CM16: 0
D17: 5.5 | E17: =+E46 -> 40.2 | F17: 43.3 | G17: 50.5 | H17: 53.6 | I17: 63.45 | J17: 71.8 | K17: 94.65 | L17: 101.75 | M17: 0 | N17: 0 | O17: 5.5 | P17: 80.4 | Q17: 86.6 | R17: 101 | S17: 107.2 | T17: 126.9 | U17: 143.6 | V17: 189.3 | W17: 203.5 | X17: 0 | Y17: 0 | Z17: 5.5 | AA17: 56.28 | AB17: 60.62 | AC17: 70.7 | AD17: 75.04 | AE17: 88.83 | AF17: 100.52 | AG17: 132.51 | AH17: 142.45 | AI17: 0 | AJ17: 0 | AK17: 5.5 | AL17: 40.2 | AM17: 43.3 | AN17: 50.5 | AO17: 53.6 | AP17: 63.45 | AQ17: 71.8 | AR17: 94.65 | AS17: 101.75 | AT17: 0 | AU17: 0 | AV17: 5.5 | AW17: 24.12 | AX17: 25.98 | AY17: 30.3 | AZ17: 32.16 | BA17: 38.07 | BB17: 43.08 | BC17: 56.79 | BD17: 61.05 | BE17: 0 | BF17: 0 | BG17: 5.5 | BH17: 16.08 | BI17: 17.32 | BJ17: 20.2 | BK17: 21.44 | BL17: 25.38 | BM17: 28.72 | BN17: 37.86 | BO17: 40.7 | BP17: 0 | BQ17: 0 | BR17: 5.5 | BS17: 80.4 | BT17: 86.6 | BU17: 101 | BV17: 107.2 | BW17: 126.9 | BX17: 143.6 | BY17: 189.3 | BZ17: 203.5 | CA17: 0 | CB17: 0 | CC17: 5.5 | CD17: 0 | CE17: 0 | CF17: 0 | CG17: 0 | CH17: 0 | CI17: 0 | CJ17: 0 | CK17: 0 | CL17: 0 | CM17: 0
D18: 6 | E18: =+E47 -> 42 | F18: 45.35 | G18: 53.05 | H18: 56.15 | I18: 66.85 | J18: 75.7 | K18: 100.5 | L18: 107.9 | M18: 0 | N18: 0 | O18: 6 | P18: 84 | Q18: 90.7 | R18: 106.1 | S18: 112.3 | T18: 133.7 | U18: 151.4 | V18: 201 | W18: 215.8 | X18: 0 | Y18: 0 | Z18: 6 | AA18: 58.8 | AB18: 63.49 | AC18: 74.27 | AD18: 78.61 | AE18: 93.59 | AF18: 105.98 | AG18: 140.7 | AH18: 151.06 | AI18: 0 | AJ18: 0 | AK18: 6 | AL18: 42 | AM18: 45.35 | AN18: 53.05 | AO18: 56.15 | AP18: 66.85 | AQ18: 75.7 | AR18: 100.5 | AS18: 107.9 | AT18: 0 | AU18: 0 | AV18: 6 | AW18: 25.2 | AX18: 27.21 | AY18: 31.83 | AZ18: 33.69 | BA18: 40.11 | BB18: 45.42 | BC18: 60.3 | BD18: 64.74 | BE18: 0 | BF18: 0 | BG18: 6 | BH18: 16.8 | BI18: 18.14 | BJ18: 21.22 | BK18: 22.46 | BL18: 26.74 | BM18: 30.28 | BN18: 40.2 | BO18: 43.16 | BP18: 0 | BQ18: 0 | BR18: 6 | BS18: 84 | BT18: 90.7 | BU18: 106.1 | BV18: 112.3 | BW18: 133.7 | BX18: 151.4 | BY18: 201 | BZ18: 215.8 | CA18: 0 | CB18: 0 | CC18: 6 | CD18: 0 | CE18: 0 | CF18: 0 | CG18: 0 | CH18: 0 | CI18: 0 | CJ18: 0 | CK18: 0 | CL18: 0 | CM18: 0
D19: 6.5 | E19: =+E48 -> 43.8 | F19: 47.4 | G19: 55.65 | H19: 58.75 | I19: 70.2 | J19: 79.6 | K19: 106.35 | L19: 114 | M19: 0 | N19: 0 | O19: 6.5 | P19: 87.6 | Q19: 94.8 | R19: 111.3 | S19: 117.5 | T19: 140.4 | U19: 159.2 | V19: 212.7 | W19: 228 | X19: 0 | Y19: 0 | Z19: 6.5 | AA19: 61.32 | AB19: 66.36 | AC19: 77.91 | AD19: 82.25 | AE19: 98.28 | AF19: 111.44 | AG19: 148.89 | AH19: 159.6 | AI19: 0 | AJ19: 0 | AK19: 6.5 | AL19: 43.8 | AM19: 47.4 | AN19: 55.65 | AO19: 58.75 | AP19: 70.2 | AQ19: 79.6 | AR19: 106.35 | AS19: 114 | AT19: 0 | AU19: 0 | AV19: 6.5 | AW19: 26.28 | AX19: 28.44 | AY19: 33.39 | AZ19: 35.25 | BA19: 42.12 | BB19: 47.76 | BC19: 63.81 | BD19: 68.4 | BE19: 0 | BF19: 0 | BG19: 6.5 | BH19: 17.52 | BI19: 18.96 | BJ19: 22.26 | BK19: 23.5 | BL19: 28.08 | BM19: 31.84 | BN19: 42.54 | BO19: 45.6 | BP19: 0 | BQ19: 0 | BR19: 6.5 | BS19: 87.6 | BT19: =Q19-(Q19*CE19) -> 94.8 | BU19: =R19-(R19*CF19) -> 111.3 | BV19: =S19-(S19*CG19) -> 117.5 | BW19: =T19-(T19*CH19) -> 140.4 | BX19: =U19-(U19*CI19) -> 159.2 | BY19: =V19-(V19*CJ19) -> 212.7 | BZ19: =W19-(W19*CK19) -> 228 | CA19: =X19-(X19*CL19) -> 0 | CB19: =Y19-(Y19*CM19) -> 0 | CC19: 6.5 | CD19: 0 | CE19: 0 | CF19: 0 | CG19: 0 | CH19: 0 | CI19: 0 | CJ19: 0 | CK19: 0 | CL19: 0 | CM19: 0
D20: 7 | E20: =+E49 -> 45.6 | F20: 49.45 | G20: 58.2 | H20: 61.3 | I20: 73.6 | J20: 83.5 | K20: 112.2 | L20: 120.15 | M20: 0 | N20: 0 | O20: 7 | P20: 91.2 | Q20: 98.9 | R20: 116.4 | S20: 122.6 | T20: 147.2 | U20: 167 | V20: 224.4 | W20: 240.3 | X20: 0 | Y20: 0 | Z20: 7 | AA20: 63.84 | AB20: 69.23 | AC20: 81.48 | AD20: 85.82 | AE20: 103.04 | AF20: 116.9 | AG20: 157.08 | AH20: 168.21 | AI20: 0 | AJ20: 0 | AK20: 7 | AL20: 45.6 | AM20: 49.45 | AN20: 58.2 | AO20: 61.3 | AP20: 73.6 | AQ20: 83.5 | AR20: 112.2 | AS20: 120.15 | AT20: 0 | AU20: 0 | AV20: 7 | AW20: 27.36 | AX20: 29.67 | AY20: 34.92 | AZ20: 36.78 | BA20: 44.16 | BB20: 50.1 | BC20: 67.32 | BD20: 72.09 | BE20: 0 | BF20: 0 | BG20: 7 | BH20: 18.24 | BI20: 19.78 | BJ20: 23.28 | BK20: 24.52 | BL20: 29.44 | BM20: 33.4 | BN20: 44.88 | BO20: 48.06 | BP20: 0 | BQ20: 0 | BR20: 7 | BS20: 91.2 | BT20: 98.9 | BU20: 116.4 | BV20: 122.6 | BW20: 147.2 | BX20: 167 | BY20: 224.4 | BZ20: 240.3 | CA20: 0 | CB20: 0 | CC20: 7 | CD20: 0 | CE20: 0 | CF20: 0 | CG20: 0 | CH20: 0 | CI20: 0 | CJ20: 0 | CK20: 0 | CL20: 0 | CM20: 0
D21: 7.5 | E21: =+E50 -> 47.4 | F21: 51.5 | G21: 60.8 | H21: 63.9 | I21: 77 | J21: 87.4 | K21: 118.1 | L21: 126.25 | M21: 0 | N21: 0 | O21: 7.5 | P21: 94.8 | Q21: 103 | R21: 121.6 | S21: 127.8 | T21: 154 | U21: 174.8 | V21: 236.2 | W21: 252.5 | X21: 0 | Y21: 0 | Z21: 7.5 | AA21: 66.36 | AB21: 72.1 | AC21: 85.12 | AD21: 89.46 | AE21: 107.8 | AF21: 122.36 | AG21: 165.34 | AH21: 176.75 | AI21: 0 | AJ21: 0 | AK21: 7.5 | AL21: 47.4 | AM21: 51.5 | AN21: 60.8 | AO21: 63.9 | AP21: 77 | AQ21: 87.4 | AR21: 118.1 | AS21: 126.25 | AT21: 0 | AU21: 0 | AV21: 7.5 | AW21: 28.44 | AX21: 30.9 | AY21: 36.48 | AZ21: 38.34 | BA21: 46.2 | BB21: 52.44 | BC21: 70.86 | BD21: 75.75 | BE21: 0 | BF21: 0 | BG21: 7.5 | BH21: 18.96 | BI21: 20.6 | BJ21: 24.32 | BK21: 25.56 | BL21: 30.8 | BM21: 34.96 | BN21: 47.24 | BO21: 50.5 | BP21: 0 | BQ21: 0 | BR21: 7.5 | BS21: 94.8 | BT21: 103 | BU21: 121.6 | BV21: 127.8 | BW21: 154 | BX21: 174.8 | BY21: 236.2 | BZ21: 252.5 | CA21: 0 | CB21: 0 | CC21: 7.5 | CD21: 0 | CE21: 0 | CF21: 0 | CG21: 0 | CH21: 0 | CI21: 0 | CJ21: 0 | CK21: 0 | CL21: 0 | CM21: 0
D22: 8 | E22: =+E51 -> 49.2 | F22: 53.6 | G22: 63.35 | H22: 66.45 | I22: 80.35 | J22: 91.3 | K22: 123.95 | L22: 132.35 | M22: 0 | N22: 0 | O22: 8 | P22: 98.4 | Q22: 107.2 | R22: 126.7 | S22: 132.9 | T22: 160.7 | U22: 182.6 | V22: 247.9 | W22: 264.7 | X22: 0 | Y22: 0 | Z22: 8 | AA22: 68.88 | AB22: 75.04 | AC22: 88.69 | AD22: 93.03 | AE22: 112.49 | AF22: 127.82 | AG22: 173.53 | AH22: 185.29 | AI22: 0 | AJ22: 0 | AK22: 8 | AL22: 49.2 | AM22: 53.6 | AN22: 63.35 | AO22: 66.45 | AP22: 80.35 | AQ22: 91.3 | AR22: 123.95 | AS22: 132.35 | AT22: 0 | AU22: 0 | AV22: 8 | AW22: 29.52 | AX22: 32.16 | AY22: 38.01 | AZ22: 39.87 | BA22: 48.21 | BB22: 54.78 | BC22: 74.37 | BD22: 79.41 | BE22: 0 | BF22: 0 | BG22: 8 | BH22: 19.68 | BI22: 21.44 | BJ22: 25.34 | BK22: 26.58 | BL22: 32.14 | BM22: 36.52 | BN22: 49.58 | BO22: 52.94 | BP22: 0 | BQ22: 0 | BR22: 8 | BS22: 98.4 | BT22: 107.2 | BU22: 126.7 | BV22: 132.9 | BW22: 160.7 | BX22: 182.6 | BY22: 247.9 | BZ22: 264.7 | CA22: 0 | CB22: 0 | CC22: 8 | CD22: 0 | CE22: 0 | CF22: 0 | CG22: 0 | CH22: 0 | CI22: 0 | CJ22: 0 | CK22: 0 | CL22: 0 | CM22: 0
D23: 8.5 | E23: =+E52 -> 51 | F23: 55.65 | G23: 65.95 | H23: 69.05 | I23: 83.75 | J23: 95.2 | K23: 129.8 | L23: 138.5 | M23: 0 | N23: 0 | O23: 8.5 | P23: 102 | Q23: 111.3 | R23: 131.9 | S23: 138.1 | T23: 167.5 | U23: 190.4 | V23: 259.6 | W23: 277 | X23: 0 | Y23: 0 | Z23: 8.5 | AA23: 71.4 | AB23: 77.91 | AC23: 92.33 | AD23: 96.67 | AE23: 117.25 | AF23: 133.28 | AG23: 181.72 | AH23: 193.9 | AI23: 0 | AJ23: 0 | AK23: 8.5 | AL23: 51 | AM23: 55.65 | AN23: 65.95 | AO23: 69.05 | AP23: 83.75 | AQ23: 95.2 | AR23: 129.8 | AS23: 138.5 | AT23: 0 | AU23: 0 | AV23: 8.5 | AW23: 30.6 | AX23: 33.39 | AY23: 39.57 | AZ23: 41.43 | BA23: 50.25 | BB23: 57.12 | BC23: 77.88 | BD23: 83.1 | BE23: 0 | BF23: 0 | BG23: 8.5 | BH23: 20.4 | BI23: 22.26 | BJ23: 26.38 | BK23: 27.62 | BL23: 33.5 | BM23: 38.08 | BN23: 51.92 | BO23: 55.4 | BP23: 0 | BQ23: 0 | BR23: 8.5 | BS23: 102 | BT23: 111.3 | BU23: 131.9 | BV23: 138.1 | BW23: 167.5 | BX23: 190.4 | BY23: 259.6 | BZ23: 277 | CA23: 0 | CB23: 0 | CC23: 8.5 | CD23: 0 | CE23: 0 | CF23: 0 | CG23: 0 | CH23: 0 | CI23: 0 | CJ23: 0 | CK23: 0 | CL23: 0 | CM23: 0
D24: 9 | E24: =+E53 -> 52.8 | F24: 57.7 | G24: 68.5 | H24: 71.6 | I24: 87.1 | J24: 99.1 | K24: 135.7 | L24: 144.6 | M24: 0 | N24: 0 | O24: 9 | P24: 105.6 | Q24: 115.4 | R24: 137 | S24: 143.2 | T24: 174.2 | U24: 198.2 | V24: 271.4 | W24: 289.2 | X24: 0 | Y24: 0 | Z24: 9 | AA24: 73.92 | AB24: 80.78 | AC24: 95.9 | AD24: 100.24 | AE24: 121.94 | AF24: 138.74 | AG24: 189.98 | AH24: 202.44 | AI24: 0 | AJ24: 0 | AK24: 9 | AL24: 52.8 | AM24: 57.7 | AN24: 68.5 | AO24: 71.6 | AP24: 87.1 | AQ24: 99.1 | AR24: 135.7 | AS24: 144.6 | AT24: 0 | AU24: 0 | AV24: 9 | AW24: 31.68 | AX24: 34.62 | AY24: 41.1 | AZ24: 42.96 | BA24: 52.26 | BB24: 59.46 | BC24: 81.42 | BD24: 86.76 | BE24: 0 | BF24: 0 | BG24: 9 | BH24: 21.12 | BI24: 23.08 | BJ24: 27.4 | BK24: 28.64 | BL24: 34.84 | BM24: 39.64 | BN24: 54.28 | BO24: 57.84 | BP24: 0 | BQ24: 0 | BR24: 9 | BS24: 105.6 | BT24: 115.4 | BU24: 137 | BV24: 143.2 | BW24: 174.2 | BX24: 198.2 | BY24: 271.4 | BZ24: 289.2 | CA24: 0 | CB24: 0 | CC24: 9 | CD24: 0 | CE24: 0 | CF24: 0 | CG24: 0 | CH24: 0 | CI24: 0 | CJ24: 0 | CK24: 0 | CL24: 0 | CM24: 0
D25: 9.5 | E25: =+E54 -> 54.6 | F25: 59.75 | G25: 71.1 | H25: 74.2 | I25: 90.5 | J25: 103 | K25: 141.55 | L25: 150.75 | M25: 0 | N25: 0 | O25: 9.5 | P25: 109.2 | Q25: 119.5 | R25: 142.2 | S25: 148.4 | T25: 181 | U25: 206 | V25: 283.1 | W25: 301.5 | X25: 0 | Y25: 0 | Z25: 9.5 | AA25: 76.44 | AB25: 83.65 | AC25: 99.54 | AD25: 103.88 | AE25: 126.7 | AF25: 144.2 | AG25: 198.17 | AH25: 211.05 | AI25: 0 | AJ25: 0 | AK25: 9.5 | AL25: 54.6 | AM25: 59.75 | AN25: 71.1 | AO25: 74.2 | AP25: 90.5 | AQ25: 103 | AR25: 141.55 | AS25: 150.75 | AT25: 0 | AU25: 0 | AV25: 9.5 | AW25: 32.76 | AX25: 35.85 | AY25: 42.66 | AZ25: 44.52 | BA25: 54.3 | BB25: 61.8 | BC25: 84.93 | BD25: 90.45 | BE25: 0 | BF25: 0 | BG25: 9.5 | BH25: 21.84 | BI25: 23.9 | BJ25: 28.44 | BK25: 29.68 | BL25: 36.2 | BM25: 41.2 | BN25: 56.62 | BO25: 60.3 | BP25: 0 | BQ25: 0 | BR25: 9.5 | BS25: 109.2 | BT25: 119.5 | BU25: 142.2 | BV25: 148.4 | BW25: 181 | BX25: 206 | BY25: 283.1 | BZ25: 301.5 | CA25: 0 | CB25: 0 | CC25: 9.5 | CD25: 0 | CE25: 0 | CF25: 0 | CG25: 0 | CH25: 0 | CI25: 0 | CJ25: 0 | CK25: 0 | CL25: 0 | CM25: 0
D26: 10 | E26: =+E55 -> 56.4 | F26: 61.8 | G26: 73.65 | H26: 76.75 | I26: 93.9 | J26: 106.9 | K26: 147.4 | L26: 156.85 | M26: 0 | N26: 0 | O26: 10 | P26: 112.8 | Q26: 123.6 | R26: 147.3 | S26: 153.5 | T26: 187.8 | U26: 213.8 | V26: 294.8 | W26: 313.7 | X26: 0 | Y26: 0 | Z26: 10 | AA26: 78.96 | AB26: 86.52 | AC26: 103.11 | AD26: 107.45 | AE26: 131.46 | AF26: 149.66 | AG26: 206.36 | AH26: 219.59 | AI26: 0 | AJ26: 0 | AK26: 10 | AL26: 56.4 | AM26: 61.8 | AN26: 73.65 | AO26: 76.75 | AP26: 93.9 | AQ26: 106.9 | AR26: 147.4 | AS26: 156.85 | AT26: 0 | AU26: 0 | AV26: 10 | AW26: 33.84 | AX26: 37.08 | AY26: 44.19 | AZ26: 46.05 | BA26: 56.34 | BB26: 64.14 | BC26: 88.44 | BD26: 94.11 | BE26: 0 | BF26: 0 | BG26: 10 | BH26: 22.56 | BI26: 24.72 | BJ26: 29.46 | BK26: 30.7 | BL26: 37.56 | BM26: 42.76 | BN26: 58.96 | BO26: 62.74 | BP26: 0 | BQ26: 0 | BR26: 10 | BS26: 112.8 | BT26: 123.6 | BU26: 147.3 | BV26: 153.5 | BW26: 187.8 | BX26: 213.8 | BY26: 294.8 | BZ26: 313.7 | CA26: 0 | CB26: 0 | CC26: 10 | CD26: 0 | CE26: 0 | CF26: 0 | CG26: 0 | CH26: 0 | CI26: 0 | CJ26: 0 | CK26: 0 | CL26: 0 | CM26: 0
D27: Add 0.5Kg | E27: =+E56 -> 1.8 | F27: 2.05 | G27: 2.55 | H27: 2.55 | I27: 3.4 | J27: 3.9 | K27: 5.85 | L27: 6.1 | M27: 0 | N27: 0 | O27: Add 0.5Kg | P27: 3.6 | Q27: 4.1 | R27: 5.1 | S27: 5.1 | T27: 6.8 | U27: 7.8 | V27: 11.7 | W27: 12.2 | X27: 0 | Y27: 0 | Z27: Add 0.5Kg | AA27: 2.52 | AB27: 2.87 | AC27: 3.57 | AD27: 3.57 | AE27: 4.76 | AF27: 5.46 | AG27: 8.19 | AH27: 8.54 | AI27: 0 | AJ27: 0 | AK27: Add 0.5Kg | AL27: 1.8 | AM27: 2.05 | AN27: 2.55 | AO27: 2.55 | AP27: 3.4 | AQ27: 3.9 | AR27: 5.85 | AS27: 6.1 | AT27: 0 | AU27: 0 | AV27: Add 0.5Kg | AW27: 1.08 | AX27: 1.23 | AY27: 1.53 | AZ27: 1.53 | BA27: 2.04 | BB27: 2.34 | BC27: 3.51 | BD27: 3.66 | BE27: 0 | BF27: 0 | BG27: Add 0.5Kg | BH27: 0.72 | BI27: 0.82 | BJ27: 1.02 | BK27: 1.02 | BL27: 1.36 | BM27: 1.56 | BN27: 2.34 | BO27: 2.44 | BP27: 0 | BQ27: 0 | BR27: Add 0.5Kg | BS27: 3.6 | BT27: 4.1 | BU27: 5.1 | BV27: 5.1 | BW27: 6.8 | BX27: 7.8 | BY27: 11.7 | BZ27: 12.2 | CA27: 0 | CB27: 0 | CC27: Add 0.5Kg | CD27: 0 | CE27: 0 | CF27: 0 | CG27: 0 | CH27: 0 | CI27: 0 | CJ27: 0 | CK27: 0 | CL27: 0 | CM27: 0
E28: =+E57 -> BHIB/0619/FST | P28: BHIB/0619/CST | AA28: BHIB/0619/TST | AL28: BHIB/0619/FST | AW28: BHIB/0619/SMT | BH28: BHIB/0619/GMT | BS28: BHIB/0619/PTA
D29: TRANSFER RATES TO MAIN SHEET | O29: CASH RATES | Z29: TELESALES TARIFF | AK29: FIELD SALES TARIFF | AV29: SALES MANAGER TARIFF | BG29: GENERAL MANAGER TARIFF
D30: TRANSFER RATES TO MAIN SHEET
E31: Z1 | F31: Z2 | G31: Z3 | H31: Z4 | I31: Z5 | J31: Z6 | K31: Z7 | L31: Z8 | M31: Z9 | N31: Z10
D32: 0.5 | E32: 11.15 | F32: 11.6 | G32: 13.55 | H32: 14.2 | I32: 15.3 | J32: 15.85 | K32: 16 | L32: 18.7 | M32: 0 | N32: 0
D33: 1 | E33: 17.85 | F33: 19 | G33: 21.9 | H33: 23.25 | I33: 25.5 | J33: 26.9 | K33: 29.5 | L33: 33.3 | M33: 0 | N33: 0
D34: 1.5 | E34: 20.1 | F34: 21.65 | G34: 24.85 | H34: 26.65 | I34: 29.6 | J34: 31.7 | K34: 36.65 | L34: 40.4 | M34: 0 | N34: 0
D35: 2 | E35: 22.4 | F35: 24.4 | G35: 27.8 | H35: 30 | I35: 33.7 | J35: 36.4 | K35: 43.8 | L35: 47.55 | M35: 0 | N35: 0
D36: 0.5 | E36: 12.45 | F36: 14.2 | G36: 15.45 | H36: 17.45 | I36: 18.6 | J36: 19.05 | K36: 21.1 | L36: 22.5 | M36: 0 | N36: 0
D37: 1 | E37: 19.2 | F37: 21.65 | G37: 23.9 | H37: 26.65 | I37: 28.95 | J37: 30.3 | K37: 34.85 | L37: 37.3 | M37: 0 | N37: 0
D38: 1.5 | E38: 21 | F38: 23.45 | G38: 26.2 | H38: 28.85 | I38: 31.9 | J38: 33.95 | K38: 40.2 | L38: 43.1 | M38: 0 | N38: 0
D39: 2 | E39: 22.8 | F39: 25.25 | G39: 28.45 | H39: 31.15 | I39: 34.85 | J39: 37.55 | K39: 45.55 | L39: 48.95 | M39: 0 | N39: 0
D40: 2.5 | E40: 24.6 | F40: 27.05 | G40: 30.65 | H40: 33.4 | I40: 37.85 | J40: 41.2 | K40: 50.9 | L40: 54.7 | M40: 0 | N40: 0
D41: 3 | E41: 26.4 | F41: 28.85 | G41: 32.95 | H41: 35.65 | I41: 40.8 | J41: 44.85 | K41: 56.3 | L41: 60.5 | M41: 0 | N41: 0
D42: 3.5 | E42: 32.2 | F42: 35.05 | G42: 40.2 | H42: 43.3 | I42: 49.95 | J42: 55.4 | K42: 70.4 | L42: 75.75 | M42: 0 | N42: 0
D43: 4 | E43: 34.25 | F43: 37.1 | G43: 42.75 | H43: 45.85 | I43: 53.3 | J43: 59.55 | K43: 76.5 | L43: 82.4 | M43: 0 | N43: 0
D44: 4.5 | E44: 36.35 | F44: 39.15 | G44: 45.35 | H44: 48.45 | I44: 56.7 | J44: 63.7 | K44: 82.65 | L44: 89 | M44: 0 | N44: 0
D45: 5 | E45: 38.4 | F45: 41.2 | G45: 47.9 | H45: 51 | I45: 60.1 | J45: 67.9 | K45: 88.75 | L45: 95.65 | M45: 0 | N45: 0
D46: 5.5 | E46: 40.2 | F46: 43.3 | G46: 50.5 | H46: 53.6 | I46: 63.45 | J46: 71.8 | K46: 94.65 | L46: 101.75 | M46: 0 | N46: 0
D47: 6 | E47: 42 | F47: 45.35 | G47: 53.05 | H47: 56.15 | I47: 66.85 | J47: 75.7 | K47: 100.5 | L47: 107.9 | M47: 0 | N47: 0
D48: 6.5 | E48: 43.8 | F48: 47.4 | G48: 55.65 | H48: 58.75 | I48: 70.2 | J48: 79.6 | K48: 106.35 | L48: 114 | M48: 0 | N48: 0
D49: 7 | E49: 45.6 | F49: 49.45 | G49: 58.2 | H49: 61.3 | I49: 73.6 | J49: 83.5 | K49: 112.2 | L49: 120.15 | M49: 0 | N49: 0
D50: 7.5 | E50: 47.4 | F50: 51.5 | G50: 60.8 | H50: 63.9 | I50: 77 | J50: 87.4 | K50: 118.1 | L50: 126.25 | M50: 0 | N50: 0
D51: 8 | E51: 49.2 | F51: 53.6 | G51: 63.35 | H51: 66.45 | I51: 80.35 | J51: 91.3 | K51: 123.95 | L51: 132.35 | M51: 0 | N51: 0
D52: 8.5 | E52: 51 | F52: 55.65 | G52: 65.95 | H52: 69.05 | I52: 83.75 | J52: 95.2 | K52: 129.8 | L52: 138.5 | M52: 0 | N52: 0
D53: 9 | E53: 52.8 | F53: 57.7 | G53: 68.5 | H53: 71.6 | I53: 87.1 | J53: 99.1 | K53: 135.7 | L53: 144.6 | M53: 0 | N53: 0
D54: 9.5 | E54: 54.6 | F54: 59.75 | G54: 71.1 | H54: 74.2 | I54: 90.5 | J54: 103 | K54: 141.55 | L54: 150.75 | M54: 0 | N54: 0
D55: 10 | E55: 56.4 | F55: 61.8 | G55: 73.65 | H55: 76.75 | I55: 93.9 | J55: 106.9 | K55: 147.4 | L55: 156.85 | M55: 0 | N55: 0
D56: Add 0.5Kg | E56: 1.8 | F56: 2.05 | G56: 2.55 | H56: 2.55 | I56: 3.4 | J56: 3.9 | K56: 5.85 | L56: 6.1 | M56: 0 | N56: 0
E57: BHIB/0619/FST
D58: GENERAL MANAGER TARIFF

Sheet Zone
E3: International Zone & Transit Guide (Import)
A5: Country | B5: Zone | C5: Import | D5: Country | E5: Zone | F5: Import | G5: Country | H5: Zone | I5: Import
A6: Afghanistan | B6: 2 | C6: 4 | D6: Germany | E6: 3 | F6: 3 | G6: Oman | H6: 1 | I6: 2
A7: Albania | B7: 6 | C7: 3 | D7: Ghana | E7: 7 | F7: 4
A8: Algeria | B8: 7 | C8: 4 | D8: Gibraltar | E8: 6 | F8: 3 | G8: Pakistan | H8: 2 | I8: 3
A9: American Samoa | B9: 8 | C9: 5 | D9: Greece | E9: 3 | F9: 4 | G9: Panama | H9: 8 | I9: 4
A10: Andorra | B10: 6 | C10: 4 | D10: Greenland | E10: 8 | F10: 4 | G10: Papua New Guinea | H10: 8 | I10: 5
A11: Angola | B11: 7 | C11: 4 | D11: Guatemala | E11: 8 | F11: 5 | G11: Paraguay | H11: 8 | I11: 4
A12: Argentina | B12: 7 | C12: 4 | D12: Guyana | E12: 8 | F12: 5 | G12: Peru | H12: 7 | I12: 5
A13: Armenia | B13: 6 | C13: 4 | G13: Philippines | H13: 5 | I13: 3
A14: Aruba | B14: 7 | C14: 5 | D14: Haiti | E14: 8 | F14: 5 | G14: Poland | H14: 6 | I14: 3
A15: Australia | B15: 5 | C15: 3 | D15: Honduras Republic | E15: 7 | F15: 5 | G15: Portugal | H15: 6 | I15: 3
A16: Austria | B16: 3 | C16: 3 | D16: Hong Kong | E16: 5 | F16: 3 | G16: Puerto Rico | H16: 7 | I16: 3
A17: Azerbaijan | B17: 6 | C17: 4 | D17: Hungary | E17: 6 | F17: 3
G18: Reunion, Island Of | H18: 8 | I18: 4
A19: Bahamas | B19: 8 | C19: 5 | D19: Iceland | E19: 6 | F19: 4 | G19: Romania | H19: 6 | I19: 5
A20: Bangladesh | B20: 5 | C20: 3 | D20: India | E20: 2 | F20: 3 | G20: Russian Federation | H20: 6 | I20: 4
A21: Barbados | B21: 8 | C21: 4 | D21: Indonesia | E21: 5 | F21: 3 | G21: Rwanda | H21: 8 | I21: 4
A22: Belarus | B22: 6 | C22: 4 | D22: Iraq | E22: 8 | F22: 3
A23: Belgium | B23: 3 | C23: 2 | D23: Ireland, Republic of | E23: 3 | F23: 3 | G23: Saipan | H23: 8 | I23: 4
A24: Belize | B24: 8 | C24: 5 | D24: Italy | E24: 3 | F24: 3 | G24: Samoa | H24: 8 | I24: 4
A25: Bermuda | B25: 7 | C25: 5 | D25: Ivory Coast | E25: 8 | F25: 4 | G25: San Marino | H25: 7 | I25: 4
A26: Bhutan | B26: 5 | C26: 4 | G26: Saudi Arabia | H26: 1 | I26: 1
A27: Bolivia | B27: 8 | C27: 5 | D27: Jamaica | E27: 7 | F27: 4 | G27: Senegal | H27: 7 | I27: 4
A28: Bonaire | B28: 7 | C28: 5 | D28: Japan | E28: 5 | F28: 3 | G28: Serbia | H28: 6 | I28: 4
A29: Bosnia and Herzegovina | B29: 6 | C29: 5 | D29: Jersey | E29: 7 | F29: 4 | G29: Seychelles | H29: 7 | I29: 4
A30: Botswana | B30: 8 | C30: 3 | D30: Jordan | E30: 2 | F30: 2 | G30: Sierra Leone | H30: 7 | I30: 5
A31: Brazil | B31: 7 | C31: 4 | G31: Singapore | H31: 5 | I31: 3
A32: Brunei | B32: 7 | C32: 3 | D32: Kazakhstan | E32: 6 | F32: 4 | G32: Slovakia | H32: 6 | I32: 3
A33: Bulgaria | B33: 6 | C33: 3 | D33: Kenya | E33: 7 | F33: 3 | G33: Slovenia | H33: 6 | I33: 4
D34: Korea, North | E34: 5 | F34: 3 | G34: Solomon Islands | H34: 8 | I34: 5
A35: Cambodia | B35: 8 | C35: 3 | D35: Korea, South | E35: 5 | F35: 3 | G35: South Africa | H35: 7 | I35: 3
A36: Cameroon | B36: 7 | C36: 5 | D36: Kuwait | E36: 1 | F36: 2 | G36: Spain | H36: 6 | I36: 2
A37: Canada | B37: 4 | C37: 4 | G37: Sri Lanka | H37: 5 | I37: 3
A38: Canary Islands, The | B38: 6 | C38: 4 | D38: Laos | E38: 8 | F38: 4 | G38: St. Kitts | H38: 7 | I38: 5
A39: Cape Verde | B39: 8 | C39: 5 | D39: Lebanon | E39: 2 | F39: 3 | G39: St. Lucia | H39: 7 | I39: 5
A40: Cayman Islands | B40: 7 | C40: 4 | D40: Liberia | E40: 7 | F40: 4 | G40: St. Maarten | H40: 8 | I40: 5
A41: Central African Republic | B41: 7 | C41: 5 | D41: Libya | E41: 8 | F41: 5 | G41: St. Vincent | H41: 7 | I41: 5
A42: Chad | B42: 7 | C42: 5 | D42: Lithuania | E42: 6 | F42: 3 | G42: Sudan | H42: 2 | I42: 3
A43: Chile | B43: 7 | C43: 4 | D43: Luxembourg | E43: 6 | F43: 3 | G43: Suriname | H43: 8 | I43: 4
A44: China | B44: 5 | C44: 3 | G44: Swaziland | H44: 7 | I44: 4
A45: Colombia | B45: 7 | C45: 4 | D45: Macau | E45: 8 | F45: 3 | G45: Sweden | H45: 6 | I45: 3
A46: Comoros | B46: 7 | C46: 4 | D46: Macedonia, Republic Of | E46: 6 | F46: 3 | G46: Switzerland | H46: 3 | I46: 4
A47: Congo | B47: 7 | C47: 4 | D47: Madagascar | E47: 7 | F47: 4
A48: Congo, Republic of | B48: 7 | C48: 4 | D48: Malawi | E48: 7 | F48: 4 | G48: Tahiti | H48: 7 | I48: 6
A49: Cook Islands | B49: 7 | C49: 5 | D49: Malaysia | E49: 5 | F49: 3 | G49: Taiwan | H49: 5 | I49: 3
A50: Costa Rica | B50: 8 | C50: 4 | D50: Maldives | E50: 7 | F50: 3 | G50: Tajikistan | H50: 6 | I50: 5
A51: Croatia | B51: 6 | C51: 3 | D51: Mali | E51: 7 | F51: 4 | G51: Tanzania | H51: 7 | I51: 3
A52: Cuba | B52: 8 | C52: 5 | D52: Malta | E52: 6 | F52: 4 | G52: Thailand | H52: 5 | I52: 3
A53: Cyprus | B53: 3 | C53: 3 | D53: Marshall Islands | E53: 8 | F53: 6 | G53: Togo | H53: 7 | I53: 4
A54: Czech Republic, The | B54: 6 | C54: 3 | D54: Martinique | E54: 8 | F54: 5 | G54: Tonga | H54: 8 | I54: 6
D55: Mauritania | E55: 7 | F55: 4 | G55: Trinidad and Tobago | H55: 7 | I55: 4
A56: Denmark | B56: 6 | C56: 3 | D56: Mauritius | E56: 7 | F56: 3 | G56: Tunisia | H56: 7 | I56: 4
A57: Djibouti | B57: 7 | C57: 3 | D57: Mexico | E57: 4 | F57: 4 | G57: Turkey | H57: 3 | I57: 3
A58: Dominica | B58: 8 | C58: 4 | D58: Moldova, Republic of | E58: 6 | F58: 4
A59: Dominican Republic | B59: 8 | C59: 4 | D59: Monaco | E59: 6 | F59: 4 | G59: Uganda | H59: 7 | I59: 4
D60: Mongolia | E60: 7 | F60: 5 | G60: United Arab Emirates | H60: 1 | I60: 1
A61: Ecuador | B61: 7 | C61: 6 | D61: Montenegro | E61: 6 | F61: 5 | G61: United Kingdom | H61: 3 | I61: 2
A62: Egypt | B62: 2 | C62: 3 | D62: Morocco | E62: 7 | F62: 3 | G62: United States Of America | H62: 3 | I62: 3
A63: El Salvador | B63: 8 | C63: 5 | D63: Mozambique | E63: 7 | F63: 3 | G63: Uruguay | H63: 7 | I63: 4
A64: Eritrea | B64: 7 | C64: 5 | D64: Myanmar | E64: 7 | F64: 3 | G64: Uzbekistan | H64: 6 | I64: 5
A65: Estonia | B65: 6 | C65: 5
A66: Ethiopia | B66: 7 | C66: 6 | D66: Namibia | E66: 8 | F66: 3 | G66: Vanuatu | H66: 8 | I66: 6
D67: Nepal | E67: 5 | F67: 4 | G67: Venezuela | H67: 7 | I67: 5
A68: Faroe Islands | B68: 7 | C68: 4 | D68: Netherlands, The | E68: 3 | F68: 4 | G68: Vietnam | H68: 7 | I68: 3
A69: Fiji Islands | B69: 8 | C69: 5 | D69: New Zealand | E69: 5 | F69: 3 | G69: Virgin Islands (British) | H69: 7 | I69: 4
A70: Finland | B70: 6 | C70: 3 | D70: Nicaragua | E70: 7 | F70: 4 | G70: Virgin Islands (US) | H70: 8 | I70: 4
A71: France | B71: 3 | C71: 3 | D71: Niger | E71: 7 | F71: 4
D72: Nigeria | E72: 7 | F72: 5 | G72: Yemen | H72: 2 | I72: 3
A73: Gambia | B73: 7 | C73: 5 | D73: Niue | E73: 7 | F73: 6 | G73: Zambia | H73: 7 | I73: 4
A74: Georgia | B74: 6 | C74: 4 | D74: Norway | E74: 6 | F74: 3 | G74: Zimbabwe | H74: 7 | I74: 4
A77: PO Box 22446, Kingdom of Bahrain Telephone No. + 973-1700 3333
